bitfinex/quotes_ETHUSD_20250217
["timestamp","ask_amount","ask_price","bid_price","bid_amount"]
[1739812666860,3.63665,2749.8,2748.8,0.7579]
[1739812667082,3.63734,2749.3,2748.8,4.39584]
[1739812667282,3.63734,2749.3,2748.9,0.09561926]
[1739812667466,3.63711,2749.5,2748.9,0.09561926]
[1739812667681,3.68224917,2749.7,2748.9,0.09561926]
[1739812667883,3.63716,2749.4,2748.9,0.09561926]
[1739812668270,0.36822492,2749.6,2748.8,4.39579]
[1739812668472,3.68200079,2749.9,2749.0,0.09533165]
[1739812668702,3.6373,2749.3,2748.9,0.09561926]
[1739812669020,3.6373,2749.3,2748.5,0.11364052]
[1739812669021,3.63783,2748.9,2748.5,0.11364052]
[1739812669865,3.63796,2748.8,2748.5,0.11364052]
[1739812670065,3.63783,2748.9,2748.5,0.11364052]
[1739812670392,3.63763,2749.1,2748.5,0.11364052]
[1739812670393,3.63769,2749.0,2748.5,3.75198052]
[1739812670696,3.63768,2749.0,2748.5,3.75198052]
[1739812670883,0.17989213,2749.5,2748.5,0.11364052]
[1739812671078,0.7587,2749.6,2748.9,0.7532]
[1739812671079,3.63722,2749.4,2748.9,0.7532]
[1739812671284,3.63722,2749.4,2748.9,4.39091]
[1739812671482,3.63722,2749.4,2748.9,0.7532]
[1739812671800,3.63722,2749.4,2748.9,4.39101]
[1739812672158,3.6373,2749.3,2748.9,0.7532]
[1739812672356,7.27414,2749.5,2749.0,3.63767]
[1739812672600,3.63702,2749.5,2748.9,4.39101]
[1739812672756,3.63725,2749.4,2748.9,4.39101]
[1739812672954,3.63725,2749.4,2748.9,8.02873]
[1739812673159,0.7587,2749.6,2748.9,0.7532]
[1739812673358,3.63698,2749.6,2749.1,3.63748]
[1739812673596,7.27393,2749.6,2749.1,3.63754]
[1739812673795,3.6367,2749.8,2749.1,3.63754]
[1739812673981,3.63646,2750.0,2749.4,3.63708]
[1739812674156,3.63645,2750.0,2748.9,4.391]
[1739812674364,3.63712,2749.5,2749.0,3.63762]
[1739812674589,3.63681,2749.7,2749.2,3.63733]
[1739812674918,3.63695,2749.6,2748.9,4.39093]
[1739812675085,3.63695,2749.6,2749.1,3.63753]
[1739812676001,3.63695,2749.6,2749.2,3.6374]
[1739812676362,3.63704,2749.5,2749.1,3.63754]
[1739812676882,3.6372,2749.4,2748.9,0.7532]
[1739812677090,3.63735,2749.3,2748.9,0.7532]
[1739812677288,4.364405,2749.5,2748.9,0.7532]
[1739812677289,3.63722,2749.4,2749.0,0.07944304]
[1739812677591,4.364405,2749.5,2749.0,3.71708304]
[1739812677770,0.727385,2749.5,2749.1,3.63748]
[1739812677961,2.45714837,2750.2,2748.9,0.7532]
[1739812678160,3.63636,2750.0,2749.5,3.63701]
[1739812678600,3.63656,2749.9,2749.4,3.63711]
[1739812678776,3.63656,2749.9,2749.4,3.63708]
[1739812678957,0.8107,2750.2,2749.2,3.63732]
[1739812679163,0.8107,2750.2,2748.9,0.7532]
[1739812679164,3.63734,2749.3,2748.9,0.7532]
[1739812679622,3.63716,2749.4,2749.0,0.07950412]
[1739812680273,4.43906,2749.4,2749.0,0.07950412]
[1739812680513,0.443906,2749.3,2749.0,0.07950412]
[1739812680795,4.081206,2749.3,2748.8,3.63794]
[1739812681099,4.081206,2749.3,2748.9,0.0797438]
[1739812681100,3.63768,2749.0,2748.9,0.0797438]
[1739812681594,3.63755,2749.1,2748.6,3.6382]
[1739812681798,3.63755,2749.1,2748.5,0.11364052]
[1739812681799,3.63755,2749.1,2748.9,0.06835183]
[1739812682004,0.363755,2749.0,2748.5,3.75198052]
[1739812682299,3.63755,2749.1,2748.5,3.75198052]
[1739812682465,3.63776,2749.0,2748.5,3.75198052]
[1739812683198,7.27521,2749.1,2748.6,3.70714823]
[1739812683395,3.63755,2749.1,2748.6,3.70714823]
[1739812683596,3.63709,2749.5,2748.9,4.42603]
[1739812683900,3.63755,2749.1,2749.0,0.07950412]
[1739812684077,3.63746,2749.2,2749.0,0.07950412]
[1739812684277,3.63746,2749.2,2748.6,0.7883]
[1739812684278,3.63756,2749.1,2748.7,3.63808]
[1739812684476,3.63755,2749.1,2749.0,0.07950412]
[1739812684794,3.63785,2748.9,2748.6,0.7883]
[1739812685104,3.63785,2748.9,2748.5,0.11364052]
[1739812685692,7.27575,2748.9,2748.5,0.11364052]
[1739812685997,3.63785,2748.9,2748.5,0.11364052]
[1739812686199,3.63785,2748.9,2748.5,3.75194052]
[1739812686399,3.63758,2749.1,2748.5,3.75194052]
[1739812686602,4.26244608,2749.5,2748.5,4.56976557]
[1739812686781,3.63754,2749.2,2748.6,3.63814]
[1739812686982,3.63759,2749.1,2748.6,3.63814]
[1739812687171,3.63754,2749.2,2748.6,3.63814]
[1739812687517,3.63755,2749.1,2748.6,3.63814]
[1739812687815,3.63821,2748.6,2748.5,0.11364052]
[1739812688015,0.04548273,2748.9,2748.5,0.11364052]
[1739812688220,3.63821,2748.6,2748.5,0.11364052]
[1739812688736,4.41801,2748.6,2748.5,5.2e-07]
[1739812688888,3.63914,2747.9,2747.4,4.42798]
[1739812689092,3.63899,2748.1,2747.5,3.6396]
[1739812689418,3.63895,2748.1,2747.6,3.63945]
[1739812689602,3.63881,2748.2,2747.6,3.63945]
[1739812689918,0.7795,2749.0,2748.0,0.7561]
[1739812690219,3.63765,2749.1,2748.6,0.7561]
[1739812690534,3.63785,2748.9,2748.2,3.63866]
[1739812690682,3.63809,2748.7,2748.1,4.46417]
[1739812690876,7.27625,2748.7,2748.1,4.46417]
[1739812691077,3.63787,2748.9,2748.2,3.63869]
[1739812691389,3.63796,2748.8,2748.3,3.63859]
[1739812691727,3.63761,2749.1,2748.6,3.63821]
[1739812692026,3.63733,2749.3,2748.6,3.63821]
[1739812692208,3.63749,2749.2,2748.6,3.63821]
[1739812692418,0.7795,2749.4,2748.4,0.7833]
[1739812692639,3.63733,2749.3,2748.8,3.63787]
[1739812693044,3.63733,2749.3,2748.6,3.63815]
[1739812693251,3.63733,2749.3,2748.6,4.080295]
[1739812693415,3.63744,2749.2,2748.6,7.718365]
[1739812693610,3.63744,2749.2,2748.4,0.7833]
[1739812693611,0.04547404,2749.1,2748.4,0.7833]
[1739812693810,3.63768,2749.0,2748.4,0.7833]
[1739812694052,3.63802,2748.8,2748.4,0.7833]
[1739812694556,4.43486,2749.0,2748.4,0.7833]
[1739812694709,4.43486,2749.0,2747.8,0.7858]
[1739812694710,3.63846,2748.5,2747.8,0.7858]
[1739812694910,0.0454812,2748.9,2747.8,0.7858]
[1739812694911,3.63876,2748.2,2747.8,0.7858]
[1739812695137,0.04548768,2748.1,2747.8,0.7858]
[1739812695336,3.63876,2748.2,2747.8,0.7858]
[1739812695539,3.63921,2747.9,2747.2,4.42575]
[1739812695711,8.52170252,2748.9,2747.4,3.63973]
[1739812695712,0.04549514,2747.8,2747.4,3.63973]
[1739812696050,3.63935,2747.8,2747.3,3.63993]
[1739812696585,3.63856,2748.4,2747.3,0.88105446]
[1739812696736,3.63874,2748.2,2747.7,3.63938]
[1739812696922,3.63912,2748.0,2747.4,3.63972]
[1739812697117,3.63877,2748.2,2747.3,0.88105446]
[1739812697318,3.63877,2748.2,2747.5,3.63954]
[1739812697513,1.52775515,2748.5,2747.2,0.7858]
[1739812697514,3.63908,2748.0,2747.2,0.7858]
[1739812697716,3.63891,2748.1,2747.2,0.7858]
[1739812697977,3.63891,2748.1,2747.4,3.63978]
[1739812698120,3.63891,2748.1,2747.3,3.63984]
[1739812698121,3.63925,2747.9,2747.3,3.69762122]
[1739812698471,4.003205,2747.8,2747.4,0.05762125]
[1739812698670,0.363925,2747.8,2747.4,0.05762125]
[1739812698872,3.63967,2747.5,2747.4,0.05762125]
[1739812699017,3.64004,2747.3,2746.6,0.832]
[1739812699213,3.64004,2747.3,2746.7,3.69938129]
[1739812699420,3.63991,2747.4,2746.7,3.69938129]
[1739812699729,3.63912,2748.0,2747.3,3.63983]
[1739812699929,3.63941,2747.7,2747.2,3.64006]
[1739812700160,3.63881,2748.2,2747.5,0.7778]
[1739812700365,7.27764,2748.2,2747.6,3.63946]
[1739812700568,0.8011,2748.3,2747.6,0.05200781]
[1739812700761,3.63882,2748.2,2747.6,0.05200781]
[1739812700951,0.443992,2748.1,2747.6,0.05200781]
[1739812701178,4.082902,2748.1,2747.6,3.69152781]
[1739812701354,4.082902,2748.1,2747.6,0.05200781]
[1739812701557,3.6393,2747.8,2747.6,0.05200781]
[1739812702274,3.63916,2747.9,2747.6,0.05200781]
[1739812702469,3.63904,2748.0,2747.6,0.05200781]
[1739812702788,4.0475232,2747.9,2747.6,0.05200781]
[1739812702988,0.4083032,2747.9,2747.6,0.05200781]
[1739812703303,3.63908,2748.0,2747.6,0.05200781]
[1739812703647,3.63908,2748.0,2747.5,4.38556581]
[1739812703892,0.8011,2748.3,2747.6,0.05476564]
[1739812704210,0.73928642,2748.7,2746.5,0.10456134]
[1739812704211,0.7819,2747.6,2746.5,0.10456134]
[1739812704494,4.42151,2747.6,2746.9,3.64034]
[1739812704788,0.442151,2747.5,2747.0,3.64032]
[1739812704950,0.442151,2747.5,2746.9,3.64034]
[1739812705153,3.63947,2747.7,2747.1,3.64018]
[1739812705364,3.63971,2747.5,2746.7,3.6407]
[1739812705566,3.63971,2747.5,2746.9,3.64038]
[1739812705900,4.46658338,2747.9,2746.5,3.10456134]
[1739812705901,7.27896,2747.7,2747.1,3.64019]
[1739812706197,3.63959,2747.6,2747.0,3.64024]
[1739812706355,0.727904,2747.6,2747.0,3.64024]
[1739812706690,3.63955,2747.6,2747.0,4.46604]
[1739812706888,3.63969,2747.5,2747.0,0.8258]
[1739812707096,4.42109,2747.9,2747.0,0.8258]
[1739812707394,3.63894,2748.1,2747.5,3.63957]
[1739812707687,7.27791,2748.1,2747.5,3.63957]
[1739812707888,0.806231,2748.0,2747.7,3.6394]
[1739812708086,3.63861,2748.3,2747.8,3.63915]
[1739812708389,3.63855,2748.4,2747.7,3.6394]
[1739812708602,3.63869,2748.3,2747.7,3.6394]
[1739812709098,3.6389,2748.1,2747.6,0.8258]
[1739812709297,0.727755,2748.1,2747.7,3.63932]
[1739812709458,3.63865,2748.3,2747.8,3.63924]
[1739812709658,4.4228,2748.5,2747.8,3.63924]
[1739812709891,4.4228,2748.5,2747.8,3.63916]
[1739812709892,3.6386,2748.4,2747.8,3.63916]
[1739812710394,3.6386,2748.4,2747.8,7.27834]
[1739812710552,3.6386,2748.4,2747.8,3.63916]
[1739812710754,4.4228,2748.5,2747.9,3.63908]
[1739812710992,0.44228,2748.4,2747.9,3.63908]
[1739812711308,4.08078,2748.4,2747.9,3.63908]
[1739812711469,4.4228,2748.5,2748.0,3.63897]
[1739812711667,3.63816,2748.7,2747.6,5.52702874]
[1739812711874,0.8028,2748.8,2748.2,3.63866]
[1739812712185,3.63816,2748.7,2748.1,3.6388]
[1739812712386,0.8028,2748.8,2748.3,3.63848]
[1739812712597,3.63785,2748.9,2748.3,3.0]
[1739812712799,4.46173,2749.1,2748.6,3.63811]
[1739812713120,3.63735,2749.3,2748.7,3.63799]
[1739812713301,0.8241,2749.4,2748.4,3.0]
[1739812713478,3.63729,2749.3,2748.8,3.63791]
[1739812713676,3.63729,2749.3,2748.6,3.63812]
[1739812714024,0.446139,2749.2,2748.7,3.638]
[1739812714684,0.446139,2749.2,2748.8,3.63787]
[1739812714877,3.63735,2749.3,2748.6,3.63812]
[1739812715110,3.63755,2749.1,2748.4,6.63839]
[1739812715421,0.86957693,2749.4,2748.2,3.63862]
[1739812715609,3.63824,2748.6,2748.1,0.7977]
[1739812715807,3.63835,2748.5,2747.9,3.63914]
[1739812716015,3.63854,2748.4,2747.9,3.63914]
[1739812716241,3.63854,2748.4,2748.0,3.0]
[1739812716544,3.63854,2748.4,2747.9,3.63914]
[1739812716545,3.63854,2748.4,2747.9,3.0]
[1739812716746,3.63854,2748.4,2747.9,6.63911]
[1739812716945,0.45079344,2748.5,2748.0,3.63898]
[1739812717112,4.08916344,2748.5,2748.0,3.63898]
[1739812717518,0.45079344,2748.5,2748.1,3.63877]
[1739812719250,4.08915344,2748.5,2748.1,3.63877]
[1739812719649,0.45079344,2748.5,2748.1,3.63877]
[1739812720447,4.08915344,2748.5,2748.1,3.63877]
[1739812721028,0.45079344,2748.5,2748.2,3.63874]
[1739812721253,4.46219,2748.7,2748.2,3.63874]
[1739812721254,8.10037,2748.7,2748.2,3.63874]
[1739812721454,3.63825,2748.6,2747.9,3.0]
[1739812721654,0.8241,2748.7,2747.9,3.0]
[1739812721819,3.63795,2748.8,2748.4,3.63847]
[1739812722152,3.63772,2749.0,2748.5,3.63834]
[1739812722153,4.44182,2749.0,2748.5,3.63834]
[1739812722351,0.444182,2748.9,2748.5,3.63834]
[1739812722920,4.082002,2748.9,2748.4,3.63845]
[1739812723618,3.63802,2748.8,2748.3,3.63854]
[1739812723820,3.63796,2748.8,2748.3,3.63851]
[1739812724529,7.27602,2748.8,2748.3,3.63851]
[1739812724730,0.7720202,2748.7,2748.3,3.63851]
[1739812724933,3.63842,2748.5,2747.8,0.17915154]
[1739812725227,3.63849,2748.4,2747.9,3.63907]
[1739812725427,3.63837,2748.5,2747.9,3.63907]
[1739812725627,0.803098,2748.4,2748.0,3.6389]
[1739812725854,0.803098,2748.4,2748.1,3.63883]
[1739812726750,0.803098,2748.4,2748.0,6.639]
[1739812726955,4.441578,2748.4,2748.0,6.639]
[1739812727256,4.441578,2748.4,2748.0,3.0]
[1739812727553,4.0827678,2748.3,2748.0,3.0]
[1739812727721,0.04548775,2748.2,2747.8,3.63927]
[1739812727922,3.68423775,2748.2,2747.8,3.63927]
[1739812728355,4.0827778,2748.3,2747.8,3.63921]
[1739812728653,4.0827778,2748.3,2747.8,3.63918]
[1739812728867,4.0827778,2748.3,2747.9,3.63913]
[1739812729023,0.4441578,2748.3,2747.9,3.63913]
[1739812729222,0.4441578,2748.3,2747.8,3.63918]
[1739812729426,0.40826378,2748.2,2747.8,3.63918]
[1739812729734,0.40826378,2748.2,2747.9,3.63913]
[1739812729943,0.40826378,2748.2,2747.7,3.63928]
[1739812730171,0.40826378,2748.2,2747.9,3.63913]
[1739812730355,0.40826378,2748.2,2747.7,3.63928]
[1739812730527,0.40826378,2748.2,2747.7,3.63935]
[1739812730728,3.63861,2748.3,2747.8,3.63917]
[1739812731062,3.63895,2748.1,2747.6,3.63946]
[1739812731260,3.63902,2748.0,2747.5,3.73983971]
[1739812731424,3.6392,2747.9,2747.5,0.10018971]
[1739812731759,3.6392,2747.9,2747.5,3.73984971]
[1739812731955,0.44475,2747.8,2747.5,0.10018971]
[1739812732332,0.44475,2747.8,2747.5,3.73979971]
[1739812732520,0.44475,2747.8,2747.5,0.10018971]
[1739812732726,0.44475,2747.8,2747.6,3.63946]
[1739812732926,0.7548,2748.3,2747.8,3.63924]
[1739812733159,3.6383,2748.6,2747.5,0.10018971]
[1739812733345,3.63838,2748.5,2747.6,3.0]
[1739812733533,3.63838,2748.5,2748.0,3.63892]
[1739812733861,3.63868,2748.3,2747.8,3.63919]
[1739812734031,4.0070468,2748.3,2747.8,3.63919]
[1739812734367,4.0070468,2748.3,2747.8,3.63918]
[1739812734566,4.0070468,2748.3,2747.6,6.63941]
[1739812734567,3.63876,2748.2,2747.6,6.63941]
[1739812734767,4.3939,2748.0,2747.5,0.10018971]
[1739812734929,0.7548,2748.0,2747.6,3.63947]
[1739812735129,0.439368,2747.9,2747.6,3.63947]
[1739812735932,3.63885,2748.2,2747.7,3.63934]
[1739812736732,4.39341,2748.3,2747.8,3.6392]
[1739812736926,3.6389,2748.1,2747.6,3.63947]
[1739812737132,3.63876,2748.2,2747.7,3.63932]
[1739812737386,0.7548,2748.3,2747.9,3.63903]
[1739812737533,1.194134,2748.3,2747.8,3.63923]
[1739812737766,1.194134,2748.3,2747.9,3.63913]
[1739812737767,4.832774,2748.3,2747.9,3.63913]
[1739812738401,13.0,2753.2,2748.0,4.52698933]
[1739812738402,3.63786,2748.9,2748.0,4.52698933]
[1739812738605,4.39216,2748.9,2748.4,3.63848]
[1739812739710,0.7543,2748.9,2748.5,3.63828]
[1739812739921,4.39213,2748.9,2748.4,3.63846]
[1739812740372,4.39213,2748.9,2748.4,3.63841]
[1739812740707,0.439213,2748.8,2748.3,3.63852]
[1739812741006,0.439213,2748.8,2748.4,3.63847]
[1739812741374,3.63816,2748.7,2748.2,3.63867]
[1739812741784,3.63822,2748.6,2748.1,3.63886]
[1739812742004,0.363822,2748.5,2748.1,3.63886]
[1739812742206,0.363822,2748.5,2748.2,3.63864]
[1739812742434,0.439213,2748.8,2748.3,3.63861]
[1739812742580,0.439213,2748.8,2748.0,8.34148631]
[1739812742581,0.7617,2749.2,2748.8,3.63786]
[1739812742897,3.63698,2749.6,2748.9,3.63773]
[1739812742898,3.63723,2749.4,2748.9,3.63773]
[1739812743096,4.39867,2749.6,2748.9,3.63773]
[1739812743298,3.63722,2749.4,2748.8,3.63785]
[1739812743508,3.63722,2749.4,2748.7,3.63799]
[1739812743710,4.39868,2749.6,2748.6,4.70251631]
[1739812743711,0.363722,2749.3,2748.9,3.63775]
[1739812743924,4.39868,2749.6,2748.6,4.70251631]
[1739812743925,3.63704,2749.5,2749.0,3.63757]
[1739812744126,3.63722,2749.4,2748.8,3.63788]
[1739812744295,3.63722,2749.4,2748.8,7.27575]
[1739812744496,3.63722,2749.4,2748.8,3.63787]
[1739812744825,3.63735,2749.3,2748.7,3.63799]
[1739812745034,3.63762,2749.1,2748.6,4.70251631]
[1739812745202,4.47055,2749.0,2748.6,3.0]
[1739812745529,4.47055,2749.0,2748.4,4.41539]
[1739812745725,4.47055,2749.0,2748.4,3.0]
[1739812745922,0.8328,2749.0,2748.5,3.63833]
[1739812746089,0.74293457,2749.8,2749.2,3.63732]
[1739812746090,0.7848,2749.7,2749.2,3.63732]
[1739812746295,4.4205,2750.5,2749.4,3.63704]
[1739812746520,3.6363,2750.1,2749.4,3.63704]
[1739812746913,3.6366,2749.9,2749.4,3.0]
[1739812747230,3.68145372,2750.3,2749.4,3.0]
[1739812747393,3.63663,2749.8,2749.4,3.0]
[1739812747600,3.6366,2749.9,2749.4,3.0]
[1739812747908,3.63697,2749.6,2749.0,5.49161631]
[1739812748108,3.63677,2749.7,2749.2,3.0]
[1739812748305,0.7848,2750.1,2749.2,3.0]
[1739812748498,3.63667,2749.8,2749.1,6.63747]
[1739812748697,0.363667,2749.7,2749.1,6.63747]
[1739812748893,0.363667,2749.7,2748.6,4.6639755]
[1739812748894,3.63727,2749.4,2748.8,3.0]
[1739812749105,3.63727,2749.4,2748.8,6.63794]
[1739812749440,3.63704,2749.5,2748.4,8.34090631]
[1739812749604,0.78,2749.1,2748.3,0.8036]
[1739812749804,3.63802,2748.8,2748.0,4.44252]
[1739812750137,3.63802,2748.8,2748.2,3.6387]
[1739812750337,3.63869,2748.3,2748.0,0.8036]
[1739812750512,0.7524,2748.5,2747.8,3.63927]
[1739812750711,3.63886,2748.2,2747.6,3.63948]
[1739812750927,0.363886,2748.1,2747.7,3.0]
[1739812751239,3.63902,2748.0,2747.5,0.10018971]
[1739812751429,4.002796,2748.1,2747.5,0.10018971]
[1739812751737,4.002796,2748.1,2747.5,3.10018971]
[1739812751916,3.63906,2748.0,2747.5,0.10018971]
[1739812752336,3.63919,2747.9,2747.5,0.10018971]
[1739812752511,3.63953,2747.6,2747.5,0.10018971]
[1739812753440,3.63942,2747.7,2747.5,0.10018971]
[1739812753839,3.6394,2747.7,2747.5,0.10018971]
[1739812754013,3.63937,2747.8,2747.5,0.10018971]
[1739812754216,3.63953,2747.6,2747.5,0.10018971]
[1739812756135,4.084067,2747.7,2747.5,0.10018971]
[1739812756327,7.723587,2747.7,2747.5,0.10018971]
[1739812756538,4.084067,2747.7,2747.5,0.10018971]
[1739812756740,3.63953,2747.6,2747.5,0.10018971]
[1739812757053,4.4118897,2747.6,2747.5,0.10018971]
[1739812757255,5.26019471,2747.6,2747.5,0.10018971]
[1739812757824,5.2146897,2747.6,2747.5,0.10018971]
[1739812758084,5.26019316,2747.6,2747.5,0.10018971]
[1739812758378,5.2146897,2747.6,2747.5,0.10018971]
[1739812760172,5.26019319,2747.6,2747.5,0.10018971]
[1739812760738,5.26019319,2747.6,2746.4,4.43893]
[1739812760940,3.64014,2747.2,2746.7,3.64072]
[1739812761120,3.64014,2747.2,2746.5,3.72082278]
[1739812761325,3.6402,2747.1,2746.7,0.0794726]
[1739812761525,3.64036,2747.0,2746.5,3.64087]
[1739812761740,3.64036,2747.0,2746.7,0.0794726]
[1739812761741,4.50367243,2747.0,2746.7,0.0794726]
[1739812761956,0.45036724,2746.9,2746.5,3.64087]
[1739812762227,0.45036724,2746.9,2746.7,0.0794726]
[1739812762564,4.45783,2747.3,2746.7,3.7201926]
[1739812762740,3.64015,2747.2,2746.7,3.7201926]
[1739812763365,4.45783,2747.3,2746.7,3.7201326]
[1739812763850,3.64008,2747.2,2746.7,3.7201926]
[1739812764093,4.45783,2747.3,2746.8,3.64057]
[1739812764288,0.445783,2747.2,2746.8,3.64057]
[1739812764425,0.445783,2747.2,2746.4,5.50041631]
[1739812764426,3.68576872,2747.1,2746.4,9.14150631]
[1739812764626,3.64034,2747.0,2746.4,4.4389]
[1739812764861,3.64034,2747.0,2746.5,3.72088278]
[1739812765041,0.7726243,2747.0,2746.6,3.64075]
[1739812765238,3.63968,2747.5,2746.5,0.07995278]
[1739812765439,0.8149,2747.7,2747.3,3.63985]
[1739812765755,4.4544,2747.7,2747.1,3.64012]
[1739812766264,0.8149,2747.7,2746.8,0.7582]
[1739812766462,0.8149,2748.1,2747.7,3.63938]
[1739812766636,3.63868,2748.3,2747.7,3.63938]
[1739812766838,4.084038,2748.3,2747.7,3.63938]
[1739812767040,4.084038,2748.3,2747.8,3.63926]
[1739812767041,0.445358,2748.3,2747.8,3.63926]
[1739812767370,4.083978,2748.3,2747.7,3.63932]
[1739812767529,4.083998,2748.3,2747.6,3.0]
[1739812767727,3.63897,2748.1,2747.6,3.0]
[1739812768257,3.63897,2748.1,2747.6,6.6395]
[1739812768578,3.63935,2747.8,2747.3,3.6399]
[1739812768785,0.04549948,2747.7,2747.1,0.8221]
[1739812768944,0.04549948,2747.7,2747.2,3.64002]
[1739812769158,4.41883,2747.7,2747.1,3.8221]
[1739812769355,4.41883,2747.7,2747.1,0.8221]
[1739812769589,0.441883,2747.6,2747.1,4.46225]
[1739812769898,4.081533,2747.6,2747.1,0.8221]
[1739812770397,0.441883,2747.6,2747.1,4.46225]
[1739812770561,0.441883,2747.6,2747.1,0.8221]
[1739812770754,3.63969,2747.5,2746.9,3.64037]
[1739812771093,3.5414,2747.4,2746.8,6.64052]
[1739812771286,3.5414,2747.4,2746.9,0.07944707]
[1739812772392,4.1257873,2747.5,2746.9,0.07944707]
[1739812772579,3.63969,2747.5,2746.9,0.07944707]
[1739812772784,3.63969,2747.5,2746.9,3.71979707]
[1739812773673,3.64,2747.3,2746.9,0.07944707]
[1739812773976,3.64033,2747.1,2746.9,0.07944707]
[1739812774184,3.64033,2747.1,2746.5,4.70251631]
[1739812774185,7.28004,2747.3,2746.6,6.64076]
[1739812774386,3.64008,2747.2,2746.9,0.07944707]
[1739812774616,3.64008,2747.2,2746.6,6.64076]
[1739812774822,3.64008,2747.2,2746.9,0.06809749]
[1739812775033,4.368004,2747.3,2746.7,3.64071]
[1739812775321,3.63994,2747.3,2746.9,0.07944707]
[1739812775529,3.64034,2747.0,2746.8,0.07968712]
[1739812775813,3.834,2748.0,2746.9,0.06809749]
[1739812775814,4.42631,2747.1,2746.9,0.06809749]
[1739812776026,0.7861,2747.1,2746.6,3.64079]
[1739812776303,5.232981,2747.1,2746.9,0.07944707]
[1739812776515,3.64037,2747.0,2746.5,3.64098]
[1739812776670,3.64037,2747.0,2746.9,0.07944707]
[1739812776875,5.232981,2747.1,2746.5,3.64092]
[1739812777071,5.232981,2747.1,2746.9,0.07944707]
[1739812777384,0.806631,2747.1,2746.9,0.07944707]
[1739812777703,0.806631,2747.1,2746.5,4.70251631]
[1739812777704,3.64015,2747.2,2746.4,4.43021]
[1739812777910,0.8188,2747.3,2746.9,0.09533649]
[1739812778098,0.8188,2747.3,2746.8,3.64058]
[1739812778270,3.64015,2747.2,2746.9,0.09533649]
[1739812778477,0.8188,2747.3,2746.9,0.09533649]
[1739812778703,4.45883,2747.3,2746.6,7.28155]
[1739812778894,1.264683,2747.3,2746.9,0.07944707]
[1739812779108,0.8027,2747.6,2747.0,3.64022]
[1739812779306,0.8027,2747.6,2746.9,3.64039]
[1739812779510,4.44224,2747.6,2746.9,3.64039]
[1739812779695,0.8027,2747.6,2747.1,3.64008]
[1739812780007,0.8027,2747.6,2746.8,4.70251631]
[1739812780008,0.8027,2747.9,2747.5,3.63961]
[1739812780311,0.8027,2747.9,2747.3,3.63993]
[1739812780494,3.63961,2747.6,2747.0,0.8173]
[1739812780677,0.0455029,2747.5,2747.0,7.45753]
[1739812780881,3.6852729,2747.5,2747.0,3.8173]
[1739812781197,1.246864,2747.9,2746.7,4.45801]
[1739812781198,3.63995,2747.3,2746.7,4.45801]
[1739812781380,3.68559809,2747.2,2746.7,2.39744263]
[1739812781579,0.04550809,2747.2,2746.8,0.0797482]
[1739812781910,0.04550809,2747.2,2746.8,3.64051]
[1739812782115,0.7552,2747.3,2746.7,0.8173]
[1739812782283,0.7552,2747.3,2746.9,0.07950816]
[1739812782478,1.558684,2747.3,2746.8,3.7203382]
[1739812782810,1.558684,2747.3,2746.9,0.07950816]
[1739812783582,3.63961,2747.6,2747.0,3.64033]
[1739812784313,3.63961,2747.6,2746.8,8.34306631]
[1739812784515,3.63975,2747.5,2746.9,0.09540979]
[1739812784676,3.63964,2747.6,2746.9,0.09540979]
[1739812784879,3.63979,2747.5,2746.9,0.09540979]
[1739812785188,4.51748551,2747.6,2747.0,3.64032]
[1739812785715,0.87794551,2747.6,2746.9,0.09540979]
[1739812786011,3.63988,2747.4,2746.9,0.09540979]
[1739812786213,3.64021,2747.1,2746.9,0.09540979]
[1739812786421,3.63976,2747.5,2746.7,0.8173]
[1739812786716,0.45177055,2747.4,2746.9,0.09540979]
[1739812786918,0.04550957,2747.4,2746.8,0.09569784]
[1739812787089,0.757,2747.7,2746.9,3.64046]
[1739812787090,3.68506945,2747.6,2746.9,3.64046]
[1739812787289,3.63956,2747.6,2746.9,3.73586979]
[1739812787607,3.63967,2747.5,2746.9,3.73586979]
[1739812787783,0.757,2747.7,2746.9,0.09540979]
[1739812787784,3.64004,2747.3,2746.9,0.09540979]
[1739812787979,0.364004,2747.3,2746.9,0.09540979]
[1739812788222,4.003964,2747.3,2746.7,4.45796]
[1739812788395,3.63996,2747.3,2746.7,4.45796]
[1739812788721,3.63996,2747.3,2746.8,0.09569784]
[1739812789224,3.64,2747.3,2746.9,0.09540979]
[1739812789394,3.6403,2747.1,2746.4,8.20313909]
[1739812789599,4.4622,2747.1,2746.9,0.09540979]
[1739812789932,5.272327,2747.1,2746.5,3.64099]
[1739812790284,5.272327,2747.1,2746.9,0.09540979]
[1739812790509,5.272327,2747.1,2746.5,7.2819]
[1739812790709,1.632127,2747.1,2746.9,0.07950816]
[1739812790914,1.632127,2747.1,2746.4,4.56202909]
[1739812791111,0.8219,2747.1,2746.9,0.07954207]
[1739812791312,0.8219,2747.1,2746.7,3.64071]
[1739812791522,4.46172,2747.4,2746.7,7.39743909]
[1739812791821,3.64,2747.3,2746.8,0.06027422]
[1739812792123,5.1974711,2747.4,2746.7,3.75672909]
[1739812792124,0.8219,2747.4,2746.7,3.75672909]
[1739812792323,4.4207,2747.7,2746.9,0.06009419]
[1739812792620,3.63954,2747.6,2747.0,0.06844425]
[1739812792822,3.64,2747.3,2747.0,0.06844425]
[1739812792997,0.73953988,2747.8,2746.4,0.8053]
[1739812792998,3.64033,2747.0,2746.4,4.56202909]
[1739812793196,0.7731,2747.1,2746.4,4.56202909]
[1739812793405,0.441326,2747.0,2746.5,3.64099]
[1739812793731,0.441326,2747.0,2746.4,4.56202909]
[1739812794103,0.7731,2747.1,2746.4,4.56202909]
[1739812794312,4.41338,2747.1,2746.5,3.64092]
[1739812795093,0.7731,2747.1,2746.5,3.64092]
[1739812795332,0.7731,2747.1,2746.5,7.2818]